Workbook

Sheet MSU
B1: Markus Salmenautio | E1: 5.12.1982 Alajärvi
B2: SUPERPESIS | E2: Runkosarja | I2: Kärkilyönnit (KL), pesänvälit | P2: Runkosarja TOP-30 | U2: Ylempi loppusarja | AB2: Ylempi loppusarja TOP-10 | AG2: Play off, voitot, voittoprosentti | AL2: Arvo-ottelut | AO2: Mitalit
B3: Vuosi | C3: Sija | D3: Seura | E3: OTT | F3: KUN | G3: LÖI | H3: TOI | I3: KL | J3: 0 > 1 | K3: 1 > 2 | L3: 2 > 3 | M3: 3 > k | N3: KL-% | P3: LÖI | Q3: TOI | R3: L+T | S3: KL | U3: OTT | V3: KUN | W3: LÖI | X3: TOI | Y3: KL | Z3: KL-% | AB3: LÖI | AC3: TOI | AD3: L+T | AE3: KL | AG3: Puolivälierät | AH3: Välierät | AI3: Pronssi | AJ3: Finaalit | AL3: IL | AM3: LL | AN3: hSM | AO3: K | AP3: H | AQ3: P
B4: 2000 | C4: 12. | D4: AA | E4: 4 | F4: 0 | G4: 0 | H4: 0 | I4: 7 | J4: 4 | K4: 1 | L4: 2 | M4: 0 | N4: 38.9 % | AA4: 0
B5: 2001 | C5: 7. | D5: KuKu | F5: suomensarja | AA5: 0
B6: 2001 | C6: 11. | D6: AA | E6: 8 | F6: 0 | G6: 0 | H6: 1 | I6: 6 | J6: 5 | K6: 1 | L6: 0 | M6: 0 | N6: 20.0 %
B7: 2002 | C7: 4. | D7: AA | F7: poikien superpesis | AA7: 0
B8: 2003 | C8: 2. | D8: ViVe | F8: ykköspesis | AA8: 0
B9: 2004 | C9: 7. | D9: ViVe 2 | F9: suomensarja | AA9: 66
B10: 2004 | C10: 9. | D10: ViVe | E10: 18 | F10: 0 | G10: 0 | H10: 9 | I10: 29 | J10: 26 | K10: 1 | L10: 2 | M10: 0 | N10: 46.0 %
B11: 2005 | C11: 10. | D11: ViVe | E11: 24 | F11: 2 | G11: 1 | H11: 17 | I11: 90 | J11: 65 | K11: 19 | L11: 3 | M11: 3 | N11: 59.2 %
B12: 2006 | C12: 6. | D12: ViVe 2 | F12: suomensarja
B13: 2006 | C13: 10. | D13: ViVe | E13: 17 | F13: 0 | G13: 2 | H13: 2 | I13: 38 | J13: 18 | K13: 8 | L13: 10 | M13: 2 | N13: 41.3 %
B14: 2007 | C14: 5. | D14: ViVe | E14: 26 | F14: 0 | G14: 3 | H14: 2 | I14: 37 | J14: 19 | K14: 12 | L14: 3 | M14: 3 | N14: 40.2 % | U14: 9 | V14: 0 | W14: 0 | X14: 6 | Y14: 26 | Z14: 56.5 % | AG14: Jatkosarja 5.
B15: 2008 | C15: 10. | D15: AA | F15: ykköspesis
B16: 2008 | C16: 8. | D16: ViVe | E16: 16 | F16: 0 | G16: 0 | H16: 6 | I16: 49 | J16: 29 | K16: 16 | L16: 4 | M16: 0 | N16: 56.3 % | U16: 7 | V16: 0 | W16: 0 | X16: 2 | Y16: 22 | Z16: 56.4 % | AG16: Jatkosarja 8.
B17: 2009 | C17: 8. | D17: AA | F17: ykköspesis
B18: 2009 | C18: 3. | D18: ViVe | E18: 9 | F18: 0 | G18: 2 | H18: 1 | I18: 10 | J18: 1 | K18: 5 | L18: 2 | M18: 2 | N18: 47.6 % | AA18: 0 | AQ18: 1
B19: 2010 | C19: 2. | D19: AA | F19: ykköspesis | AA19: 0
B20: 2011 | C20: 1. | D20: AA | F20: ykköspesis | AA20: 0
B21: **** | AA21: 40
B22: 2014 | C22: 5. | D22: AA 2 | F22: suomensarja | AA22: 74
B23: Yhteensä | E23: 122 | F23: 2 | G23: 8 | H23: 38 | I23: 266 | J23: 167 | K23: 63 | L23: 26 | M23: 10 | N23: 47.9 % | P23: 0-0-0 | Q23: 0-0-0 | R23: 0-0-0 | S23: 0-0-0 | U23: =PRODUCT(E29) -> 16 | V23: 0 | W23: 0 | X23: 8 | Y23: 48 | Z23: =PRODUCT(N29) -> 56.5 % | AA23: =SUM(AA3:AA22) -> 180 | AB23: 0-0-0 | AC23: 0-0-0 | AD23: 0-0-0 | AE23: 0-0-0 | AG23: 0/2 | AH23: 0/0 | AI23: 0/0 | AJ23: 0/0 | AL23: 0 | AM23: 0 | AN23: 0 | AO23: 0 | AP23: 0 | AQ23: 1
AG24: 0.0 % | AH24: 0.0 % | AI24: 0.0 % | AJ24: 0.0 %
B25: Pesispörssi | D25: 174.0
B27: URA SUPERISSA | E27: OTT | F27: KUN | G27: LÖI | H27: TOI | I27: KL | K27: ka/L | L27: ka/T | M27: ka/KL | N27: KL-% | P27: ENSIMMÄISET | AG27: ENSIMMÄISET PUDOTUSPELEISSÄ | AL27: YLEISÖ
B28: Runkosarja | E28: 122 | F28: 2 | G28: 8 | H28: 38 | I28: 266 | K28: 0.08 | L28: 0.31 | M28: 2.18 | N28: 47.9 % | P28: Ottelu | R28: 08.06. 2000 PattU - AA 1-2 (0-1, 7-1, 0-0, 0-1) | AA28: 1. ottelu | AD28: 17 v 2 kk 3 pv | AG28: Ottelu | AH28: 1. 07.08 2007 ViVe - KiPa 2-1 s | AL28: 2495 | AN28: 24 v 8 kk 2 pv
B29: Ylempi loppusarja | E29: 16 | F29: 0 | G29: 0 | H29: 8 | I29: 48 | K29: 0.00 | L29: 0.50 | M29: 3.00 | N29: 56.5 % | P29: Lyöty | R29: 13.09. 2003 ViVe - JoMa 2-0 (2-1, 5-4) | AA29: 21. ottelu | AD29: 20 v 5 kk 8 pv | AG29: Lyöty
B30: Alempi loppusarja | E30: 30 | F30: 1 | G30: 3 | H30: 23 | I30: 84 | K30: 0.13 | L30: 0.77 | M30: 2.80 | N30: 55.3 % | P30: Tuotu | R30: 24.07. 2001 AA - LP 2-0 (7-0, 7-6) | AA30: 12. ottelu | AD30: 18 v 7 kk 19 pv | AG30: Tuotu | AH30: 1. 07.08 2007 ViVe - KiPa 2-1 s | AL30: 2495 | AN30: 24 v 8 kk 2 pv
B31: KAIKKI | E31: 168 | F31: 3 | G31: 11 | H31: 69 | I31: 398 | K31: 0.08 | L31: 0.41 | M31: 2.37 | N31: 50.3 % | P31: Kunnari | R31: 13.09. 2003 ViVe - JoMa 2-0 (2-1, 5-4) | AA31: 21. ottelu | AD31: 20 v 5 kk 8 pv | AG31: Kunnari
B33: Seurat | D33: AA = Alajärven Ankkurit (1944), kasvattajaseura
D34: KuKu = Kuortaneen Kunto (1921) | AG34: KATSOJIA YLI 5000
D35: ViVe = Vimpelin Veto (1934) | AG35: 5076 | AH35: 63. 29.07. 2008 KPL - ViVe 2-0

Sheet MYP, MSS
B1: Markus Salmenautio | E1: 5.2.1982 Alajärvi
B2: YKKÖSPESIS | E2: Runkosarja | L2: Runkosarja TOP-10 | Q2: Jatkosarjat | X2: SUOMENSARJA | AA2: Runkosarja | AH2: Runkosarja TOP-10 | AM2: Jatkosarjat
B3: Vuosi | C3: Sija | D3: Seura | E3: OTT | F3: KUN | G3: LÖI | H3: TOI | I3: KL | J3: KL-% | L3: LÖI | M3: TOI | N3: L+T | O3: KL | Q3: OTT | R3: KUN | S3: LÖI | T3: TOI | U3: KL | V3: KL-% | X3: Vuosi | Y3: Sija | Z3: Seura | AA3: OTT | AB3: KUN | AC3: LÖI | AD3: TOI | AE3: KL | AF3: KL-% | AH3: LÖI | AI3: TOI | AJ3: L+T | AK3: KL | AM3: OTT | AN3: KUN | AO3: LÖI | AP3: TOI | AQ3: KL | AR3: KL-%
X4: 2001 | Y4: 7. | Z4: KuKu | AA4: 3 | AB4: 0 | AC4: 0 | AD4: 3 | AE4: 16 | AF4: 72.7 % | AG4: 22
B6: 2003 | C6: 2. | D6: ViVe | E6: 22 | F6: 0 | G6: 6 | H6: 24 | I6: 49 | J6: 52.7 % | K6: 93
X7: 2004 | Y7: 7. | Z7: ViVe 2 | AA7: 1 | AB7: 0 | AC7: 0 | AD7: 0 | AE7: 3 | AF7: 75.0 % | AG7: 4
X9: 2006 | Y9: 6. | Z9: ViVe 2 | AA9: 2 | AB9: 1 | AC9: 3 | AD9: 1 | AE9: 13 | AF9: 61.9 % | AG9: 21
B10: 2008 | C10: 10. | D10: AA | E10: 7 | F10: 1 | G10: 5 | H10: 10 | I10: 41 | J10: 65.1 % | K10: 63
B11: 2009 | C11: 8. | D11: AA | E11: 12 | F11: 0 | G11: 3 | H11: 12 | I11: 56 | J11: 70.9 % | K11: 79
B12: 2010 | C12: 2. | D12: AA | E12: 22 | F12: 1 | G12: 6 | H12: 39 | I12: 129 | J12: 69.7 % | K12: 185 | M12: 7. | O12: 3. | Q12: 5 | R12: 0 | S12: 0 | T12: 3 | U12: 23 | V12: 62.2 % | W12: 37
B13: 2011 | C13: 1. | D13: AA | E13: 22 | F13: 2 | G13: 7 | H13: 23 | I13: 123 | J13: 73.2 % | K13: 168 | O13: 5. | Q13: 7 | R13: 0 | S13: 3 | T13: 9 | U13: 28 | V13: 54.9 % | W13: 51
B14: YHTEENSÄ | E14: =SUM(E4:E13) -> 85 | F14: =SUM(F4:F13) -> 4 | G14: =SUM(G4:G13) -> 27 | H14: =SUM(H4:H13) -> 108 | I14: =SUM(I4:I13) -> 398 | J14: =PRODUCT(I14/K14) -> 67.7 % | K14: =SUM(K4:K13) -> 588 | Q14: =SUM(Q4:Q13) -> 12 | R14: =SUM(R4:R13) -> 0 | S14: =SUM(S4:S13) -> 3 | T14: =SUM(T4:T13) -> 12 | U14: =SUM(U4:U13) -> 51 | V14: =PRODUCT(U14/W14) -> 58.0 % | W14: =SUM(W4:W13) -> 88 | X14: YHTEENSÄ | AA14: =SUM(AA4:AA13) -> 6 | AB14: =SUM(AB4:AB13) -> 1 | AC14: =SUM(AC4:AC13) -> 3 | AD14: =SUM(AD4:AD13) -> 4 | AE14: =SUM(AE4:AE13) -> 32 | AF14: =PRODUCT(AE14/AG14) -> 68.1 % | AG14: =SUM(AG4:AG13) -> 47 | AM14: =SUM(AM4:AM13) -> 0 | AN14: =SUM(AN4:AN13) -> 0 | AO14: =SUM(AO4:AO13) -> 0 | AP14: =SUM(AP4:AP13) -> 0 | AQ14: =SUM(AQ4:AQ13) -> 0 | AR14: 0.0 % | AS14: =SUM(AS4:AS13) -> 0
B16: KAIKKI OTTELUT | E16: OTT | F16: KUN | G16: LÖI | H16: TOI | I16: KL | J16: KL-% | L16: ka/L | M16: ka/T | N16: ka/l+t | O16: ka/kl | R16: Seurat | T16: AA = Alajärven Ankkurit (1944), kasvattajaseura
B17: SUPERPESIS | E17: 168 | F17: 3 | G17: 11 | H17: 69 | I17: 398 | J17: 50.3 % | K17: =PRODUCT(I17/J17) -> 791.2524851 | L17: 0.00 | M17: 0.00 | N17: 0.00 | O17: 0.00 | T17: KuKu = Kuortaneen Kunto (1921)
B18: YKKÖSPESIS | E18: =PRODUCT(E14+Q14) -> 97 | F18: =PRODUCT(F14+R14) -> 4 | G18: =PRODUCT(G14+S14) -> 30 | H18: =PRODUCT(H14+T14) -> 120 | I18: =PRODUCT(I14+U14) -> 449 | J18: =PRODUCT(I18/K18) -> 66.4 % | K18: =PRODUCT(K14+W14) -> 676 | L18: =PRODUCT((F18+G18)/E18) -> 0.35 | M18: =PRODUCT(H18/E18) -> 1.24 | N18: =PRODUCT((F18+G18+H18)/E18) -> 1.59 | O18: =PRODUCT(I18/E18) -> 4.63 | T18: ViVe = Vimpelin Veto (1934)
B19: SUOMENSARJA | E19: =PRODUCT(AA14+AM14) -> 6 | F19: =PRODUCT(AB14+AN14) -> 1 | G19: =PRODUCT(AC14+AO14) -> 3 | H19: =PRODUCT(AD14+AP14) -> 4 | I19: =PRODUCT(AE14+AQ14) -> 32 | J19: =PRODUCT(I19/K19) -> 68.1 % | K19: =PRODUCT(AG14+AS14) -> 47 | L19: =PRODUCT((F19+G19)/E19) -> 0.67 | M19: =PRODUCT(H19/E19) -> 0.67 | N19: =PRODUCT((F19+G19+H19)/E19) -> 1.33 | O19: =PRODUCT(I19/E19) -> 5.33
B20: YHTEENSÄ | E20: =SUM(E17:E19) -> 271 | F20: =SUM(F17:F19) -> 8 | G20: 44 | H20: 193 | I20: 879 | J20: =PRODUCT(I20/K20) -> 58.0 % | K20: =SUM(K17:K19) -> 1514.252485 | L20: =PRODUCT((F20+G20)/E20) -> 0.19 | M20: =PRODUCT(H20/E20) -> 0.71 | N20: =PRODUCT((F20+G20+H20)/E20) -> 0.90 | O20: =PRODUCT(I20/E20) -> 3.24

Sheet Arvo-ottelut
B1: ITÄ - LÄNSI - KORTTI
B2: Markus Salmenautio | C2: 5.2.1982 Alajärvi
B3: A - POJAT | C3: Itä - Länsi, tulos | D3: Joukkue | E3: Seura | G3: V | H3: T | I3: H | J3: Up. | K3: Lj. | L3: Palk. | M3: O | N3: K | O3: L | P3: T | Q3: KL | R3: 1 | S3: 2 | T3: 3 | U3: k | V3: KL-% | W3: Pelinjohtaja | X3: Yleisöä
B4: 14.07. 2001 Hamina | C4: 0-2 (1-3, 3-4) | D4: Länsi | E4: AA | G4: 1 | K4: jok | M4: 1 | Q4: 0/2 | R4: 0/1 | T4: 0/1 | V4: 0.0 % | W4: Ismo Juka | X4: 2340

Sheet Kärkilyönnit
B1: KÄRKILYÖNNIT RUNKOSARJASSA | V1: VUOSITTAISET SIJOITUKSET TOP - 30
G2: 0 > 1 | J2: 1 > 2 | M2: 2 > 3 | P2: 3 > k | S2: Yhteensä
B3: Vuosi | C3: Sija | D3: Seura | E3: OTT | F3: KL | G3: YHT | H3: % | I3: KL | J3: YHT | K3: % | L3: KL | M3: YHT | N3: % | O3: KL | P3: YHT | Q3: % | R3: KL | S3: YHT | T3: % | V3: Vuosi | W3: Sija | X3: Seura | Y3: 0 > 1 | Z3: 1 > 2 | AA3: 2 > 3 | AB3: 3 > k | AC3: KL
B4: 2000 | C4: 14. | D4: AA | E4: 4 | F4: 4 | G4: 9 | H4: 44.4 % | I4: 1 | J4: 5 | K4: 20.0 % | L4: 2 | M4: 2 | N4: 100.0 % | O4: 0 | P4: 2 | Q4: 0.0 % | R4: 7 | S4: 18 | T4: 38.9 % | V4: 2000 | W4: 14. | X4: AA
B5: 2001 | C5: 12. | D5: AA | E5: 8 | F5: 5 | G5: 22 | H5: 22.7 % | I5: 1 | J5: 5 | K5: 20.0 % | L5: 0 | M5: 2 | N5: 0.0 % | O5: 0 | P5: 1 | Q5: 0.0 % | R5: 6 | S5: 30 | T5: 20.0 % | V5: 2001 | W5: 12. | X5: AA
B6: **** | V6: ****
B7: 2004 | C7: 11. | D7: ViVe | E7: 18 | F7: 26 | G7: 48 | H7: 54.2 % | I7: 1 | J7: 7 | K7: 14.3 % | L7: 2 | M7: 6 | N7: 33.3 % | O7: 0 | P7: 2 | Q7: 0.0 % | R7: 29 | S7: 63 | T7: 46.0 % | V7: 2004 | W7: 11. | X7: ViVe
B8: 2005 | C8: 11. | D8: ViVe | E8: 24 | F8: 65 | G8: 111 | H8: 58.6 % | I8: 19 | J8: 31 | K8: 61.3 % | L8: 3 | M8: 5 | N8: 60.0 % | O8: 3 | P8: 5 | Q8: 60.0 % | R8: 90 | S8: 152 | T8: 59.2 % | V8: 2005 | W8: 11. | X8: ViVe | Y8: 14.
B9: 2006 | C9: 9. | D9: ViVe | E9: 17 | F9: 18 | G9: 45 | H9: 40.0 % | I9: 8 | J9: 21 | K9: 38.1 % | L9: 10 | M9: 21 | N9: 47.6 % | O9: 2 | P9: 5 | Q9: 40.0 % | R9: 38 | S9: 92 | T9: 41.3 % | V9: 2006 | W9: 9. | X9: ViVe
B10: 2007 | C10: 7. | D10: ViVe | E10: 26 | F10: 19 | G10: 41 | H10: 46.3 % | I10: 12 | J10: 34 | K10: 35.3 % | L10: 3 | M10: 8 | N10: 37.5 % | O10: 3 | P10: 9 | Q10: 33.3 % | R10: 37 | S10: 92 | T10: 40.2 % | V10: 2007 | W10: 7. | X10: ViVe
B11: 2008 | C11: 7. | D11: ViVe | E11: 16 | F11: 29 | G11: 55 | H11: 52.7 % | I11: 16 | J11: 24 | K11: 66.7 % | L11: 4 | M11: 7 | N11: 57.1 % | O11: 0 | P11: 1 | Q11: 0.0 % | R11: 49 | S11: 87 | T11: 56.3 % | V11: 2008 | W11: 7. | X11: ViVe
B12: 2009 | C12: 3. | D12: ViVe | E12: 9 | F12: 1 | G12: 2 | H12: 50.0 % | I12: 5 | J12: 11 | K12: 45.5 % | L12: 2 | M12: 4 | N12: 50.0 % | O12: 2 | P12: 4 | Q12: 50.0 % | R12: 10 | S12: 21 | T12: 47.6 % | V12: 2009 | W12: 3. | X12: ViVe
B13: Yhteensä | E13: =SUM(E4:E12) -> 122 | F13: =SUM(F4:F12) -> 167 | G13: =SUM(G4:G12) -> 333 | H13: =PRODUCT(F13/G13) -> 50.2 % | I13: =SUM(I4:I12) -> 63 | J13: =SUM(J4:J12) -> 138 | K13: =PRODUCT(I13/J13) -> 45.7 % | L13: =SUM(L4:L12) -> 26 | M13: =SUM(M4:M12) -> 55 | N13: =PRODUCT(L13/M13) -> 47.3 % | O13: =SUM(O4:O12) -> 10 | P13: =SUM(P4:P12) -> 29 | Q13: =PRODUCT(O13/P13) -> 34.5 % | R13: =SUM(R4:R12) -> 266 | S13: =SUM(S4:S12) -> 555 | T13: =PRODUCT(R13/S13) -> 47.9 %
B15: KÄRKILYÖNNIT YLEMMISSÄ PUDOTUSPELEISSÄ | V15: VUOSITTAISET SIJOITUKSET TOP - 30
G16: 0 > 1 | J16: 1 > 2 | M16: 2 > 3 | P16: 3 > k | S16: Yhteensä
B17: Vuosi | C17: Sija | D17: Seura | E17: OTT | F17: KL | G17: YHT | H17: % | I17: KL | J17: YHT | K17: % | L17: KL | M17: YHT | N17: % | O17: KL | P17: YHT | Q17: % | R17: KL | S17: YHT | T17: % | V17: Vuosi | W17: Sija | X17: Seura | Y17: 0 > 1 | Z17: 1 > 2 | AA17: 2 > 3 | AB17: 3 > k | AC17: KL
B18: 2000 | C18: 12. | D18: AA | V18: 2000 | W18: 12. | X18: AA
B19: 2001 | C19: 11. | D19: AA | V19: 2001 | W19: 11. | X19: AA
B20: **** | V20: ****
B21: 2004 | C21: 9. | D21: ViVe | V21: 2004 | W21: 9. | X21: ViVe
B22: 2005 | C22: 10. | D22: ViVe | V22: 2005 | W22: 10. | X22: ViVe
B23: 2006 | C23: 10. | D23: ViVe | V23: 2006 | W23: 10. | X23: ViVe
B24: 2007 | C24: 5. | D24: ViVe | E24: 9. | F24: 17 | G24: 29 | H24: 58.6 % | I24: 7 | J24: 14 | K24: 50.0 % | L24: 2 | M24: 2 | N24: 100.0 % | O24: 0 | P24: 1 | Q24: 0.0 % | R24: 26 | S24: 46 | T24: 56.5 % | V24: 2007 | W24: 5. | X24: ViVe | Y24: 22.
B25: 2008 | C25: 8. | D25: ViVe | E25: 7. | F25: 7 | G25: 14 | H25: 50.0 % | I25: 13 | J25: 20 | K25: 65.0 % | L25: 2 | M25: 3 | N25: 66.7 % | O25: 0 | P25: 2 | Q25: 0.0 % | R25: 22 | S25: 39 | T25: 56.4 % | V25: 2008 | W25: 8. | X25: ViVe | Z25: 18.
B26: 2009 | C26: 3. | D26: ViVe | V26: 2009 | W26: 3. | X26: ViVe
B27: Yhteensä | E27: =SUM(E16:E26) -> 0 | F27: =SUM(F18:F26) -> 24 | G27: =SUM(G18:G26) -> 43 | H27: =PRODUCT(F27/G27) -> 55.8 % | I27: =SUM(I18:I26) -> 20 | J27: =SUM(J18:J26) -> 34 | K27: =PRODUCT(I27/J27) -> 58.8 % | L27: =SUM(L18:L26) -> 4 | M27: =SUM(M18:M26) -> 5 | N27: =PRODUCT(L27/M27) -> 80.0 % | O27: =SUM(O18:O26) -> 0 | P27: =SUM(P18:P26) -> 3 | Q27: =PRODUCT(O27/P27) -> 0.0 % | R27: =SUM(R18:R26) -> 48 | S27: =SUM(S18:S26) -> 85 | T27: =PRODUCT(R27/S27) -> 56.5 %
B29: KÄRKILYÖNNIT
G30: 0 > 1 | J30: 1 > 2 | M30: 2 > 3 | P30: 3 > k | S30: Yhteensä
E31: OTT | F31: KL | G31: YHT | H31: % | I31: KL | J31: YHT | K31: % | L31: KL | M31: YHT | N31: % | O31: KL | P31: YHT | Q31: % | R31: KL | S31: YHT | T31: %
B32: RUNKOSARJA | E32: =PRODUCT(E13) -> 122 | F32: =PRODUCT(F13) -> 167 | G32: =PRODUCT(G13) -> 333 | H32: =PRODUCT(H13) -> 50.2 % | I32: =PRODUCT(I13) -> 63 | J32: =PRODUCT(J13) -> 138 | K32: =PRODUCT(K13) -> 45.7 % | L32: =PRODUCT(L13) -> 26 | M32: =PRODUCT(M13) -> 55 | N32: =PRODUCT(N13) -> 47.3 % | O32: =PRODUCT(O13) -> 10 | P32: =PRODUCT(P13) -> 29 | Q32: =PRODUCT(Q13) -> 34.5 % | R32: =PRODUCT(R13) -> 266 | S32: =PRODUCT(S13) -> 555 | T32: =PRODUCT(T13) -> 47.9 %
B33: PLAY OFF | E33: =PRODUCT(E27) -> 0 | F33: =PRODUCT(F27) -> 24 | G33: 43 | H33: 55.8 % | I33: 20 | J33: 34 | K33: 58.8 % | L33: 4 | M33: 5 | N33: 80.0 % | O33: 0 | P33: 3 | Q33: 0.0 % | R33: 48 | S33: 85 | T33: 56.5 %
